fUSD/lending_fUSD_20240423
["ID","MTS","AMOUNT","RATE_DAILY","PERIOD"]
[323267173,1713858648068,-500.0,0.00011994,2]
[323267174,1713858648078,-4339.27,0.00011994,2]
[323267175,1713858648089,-500.0,0.00011994,2]
[323267176,1713858648100,-500.0,0.00011994,2]
[323267177,1713858648111,-1843.41,0.00011994,2]
[323267178,1713858648122,-500.0,0.00011994,2]
[323267179,1713858648133,-919.89,0.00011994,2]
[323267180,1713858648143,-500.0,0.00011994,2]
[323267181,1713858648155,-500.0,0.00011994,2]
[323267182,1713858648166,-2342.41,0.00011994,2]
[323267183,1713858648177,-500.0,0.00011994,2]
[323267184,1713858648189,-1392.22,0.00011994,2]
[323267185,1713858648199,-500.0,0.00011994,2]
[323267186,1713858648210,-3432.95,0.00011994,2]
[323267187,1713858648221,-504.95385244,0.00011994,2]
[323267188,1713858648231,-448.86910571,0.00011994,2]
[323267189,1713858648241,-563.15617129,0.00011994,2]
[323267190,1713858648252,-2719.86,0.00011994,2]
[323267191,1713858648262,-500.0,0.00011994,2]
[323267192,1713858648273,-500.0,0.00011994,2]
[323267193,1713858648284,-500.0,0.00011994,2]
[323267194,1713858648295,-500.0,0.00011994,2]
[323267195,1713858648305,-577.42,0.00011994,2]
[323267196,1713858648316,-220.03011045,0.00011994,2]
[323267197,1713858648326,-500.0,0.00011994,2]
[323267198,1713858648335,-500.0,0.00011994,2]
[323267199,1713858648346,-543.64344196,0.00011994,2]
[323267200,1713858648356,-500.0,0.00011994,2]
[323267201,1713858648366,-169.79235491,0.00011994,2]
[323267202,1713858648376,-500.0,0.00011994,2]
[323267203,1713858648386,-500.0,0.00011994,2]
[323267204,1713858648396,-500.0,0.00011994,2]
[323267205,1713858648407,-604.05,0.00011994,2]
[323267206,1713858648417,-1739.09,0.00011994,2]
[323267207,1713858648429,-500.0,0.00011994,2]
[323267208,1713858648440,-500.0,0.00011994,2]
[323267209,1713858648450,-500.0,0.00011994,2]
[323267210,1713858648459,-646.38186421,0.00011994,2]
[323267211,1713858648469,-638.82257479,0.00011994,2]
[323267212,1713858648478,-500.0,0.00011994,2]
[323267213,1713858648489,-500.0,0.00011994,2]
[323267214,1713858648499,-560.48989214,0.00011994,2]
[323267215,1713858648510,-500.0,0.00011994,2]
[323267216,1713858648521,-500.0,0.00011994,2]
[323267217,1713858648532,-500.0,0.00011994,2]
[323267218,1713858648543,-1397.3,0.00011994,2]
[323267219,1713858648554,-500.0,0.00011994,2]
[323267220,1713858648564,-1745.78,0.00011994,2]
[323267221,1713858648575,-427.82222249,0.00011994,2]
[323267222,1713858648586,-500.0,0.00011994,2]
[323267223,1713858648597,-500.0,0.00011994,2]
[323267224,1713858648607,-565.17787695,0.00011994,2]
[323267225,1713858648617,-500.0,0.00011994,2]
[323267226,1713858648629,-500.0,0.00011994,2]
[323267227,1713858648640,-500.0,0.00011994,2]
[323267228,1713858648650,-500.0,0.00011994,2]
[323267229,1713858648661,-500.0,0.00011994,2]
[323267230,1713858648673,-500.0,0.00011994,2]
[323267231,1713858648688,-500.0,0.00011994,2]
[323267232,1713858648698,-3868.84,0.00011994,2]
[323267233,1713858648709,-500.0,0.00011995,2]
[323267234,1713858648720,-500.0,0.00011995,2]
[323267235,1713858648730,-406.33333049,0.00011995,2]
[323267236,1713858648741,-457.40214613,0.00011995,2]
[323267237,1713858648751,-500.0,0.00011995,2]
[323267238,1713858648763,-500.0,0.00011995,2]
[323267239,1713858648775,-503.01747096,0.00011995,2]
[323267240,1713858648785,-500.0,0.00011995,2]
[323267241,1713858648796,-504.48129969,0.00011995,2]
[323267242,1713858648806,-503.04701793,0.00011995,2]
[323267243,1713858648817,-686.56,0.00011995,2]
[323267244,1713858648827,-500.0,0.00011995,2]
[323267245,1713858648836,-1044.35,0.00011995,2]
[323267246,1713858648846,-500.0,0.00011995,2]
[323267247,1713858648856,-500.0,0.00011995,2]
[323267248,1713858648866,-500.0,0.00011995,2]
[323267249,1713858648876,-1099.84,0.00011995,2]
[323267250,1713858648886,-578.7334475,0.00011995,2]
[323267251,1713858648896,-503.26432233,0.00011995,2]
[323267252,1713858648908,-554.36140986,0.00011995,2]
[323267253,1713858648918,-795.31,0.00011995,2]
[323267254,1713858648927,-500.0,0.00011995,2]
[323267255,1713858648937,-906.31,0.00011995,2]
[323267256,1713858648946,-500.0,0.00011995,2]
[323267257,1713858648956,-500.0,0.00011995,2]
[323267258,1713858648966,-500.0,0.00011995,2]
[323267259,1713858648977,-500.0,0.00011995,2]
[323267260,1713858648986,-502.24919122,0.00011995,2]
[323267261,1713858648995,-500.0,0.00011995,2]
[323267262,1713858649004,-719.37,0.00011995,2]
[323267263,1713858649014,-570.33,0.00011995,2]
[323267264,1713858649023,-500.0,0.00011995,2]
[323267265,1713858649032,-505.67968737,0.00011995,2]
[323267266,1713858649041,-500.0,0.00011995,2]
[323267267,1713858649051,-592.90225908,0.00011995,2]
[323267268,1713858649060,-500.0,0.00011995,2]
[323267269,1713858649069,-500.0,0.00011995,2]
[323267270,1713858649079,-500.0,0.00011995,2]
[323267271,1713858649088,-500.0,0.00011995,2]
[323267272,1713858649098,-1033.58,0.00011995,2]
[323267273,1713858649107,-588.95,0.00011995,2]
[323267274,1713858649117,-500.0,0.00011995,2]
[323267275,1713858649126,-500.0,0.00011995,2]
[323267276,1713858649135,-502.66056429,0.00011995,2]
[323267277,1713858649144,-500.0,0.00011995,2]
[323267278,1713858649155,-500.0,0.00011995,2]
[323267279,1713858649165,-500.0,0.00011995,2]
[323267280,1713858649174,-500.0,0.00011995,2]
[323267281,1713858649183,-235.3749755,0.00011995,2]
[323267282,1713858649193,-695.71,0.00011995,2]
[323267283,1713858649202,-500.0,0.00011995,2]
[323267284,1713858649211,-500.0,0.00011995,2]
[323267285,1713858649220,-500.0,0.00011995,2]
[323267286,1713858649229,-500.0,0.00011995,2]
[323267287,1713858649238,-641.09750437,0.00011995,2]
[323267288,1713858649247,-384.82876298,0.00011995,2]
[323267289,1713858649256,-501.4479948,0.00011995,2]
[323267290,1713858649265,-500.0,0.00011995,2]
[323267291,1713858649275,-550.16,0.00011995,2]
[323267292,1713858649284,-504.32794996,0.00011995,2]
[323267293,1713858649293,-500.0,0.00011995,2]
[323267294,1713858649303,-542.1,0.00011995,2]
[323267295,1713858649312,-500.0,0.00011995,2]
[323267296,1713858649321,-470.62074701,0.00011995,2]
[323267297,1713858649331,-913.57,0.00011995,2]
[323267298,1713858649340,-500.0,0.00011995,2]
[323267299,1713858649350,-529.93278182,0.00011995,2]
[323267300,1713858649360,-551.1,0.00011995,2]
[323267301,1713858649369,-574.77112319,0.00011995,2]
[323267302,1713858649378,-552.37,0.00011995,2]
[323267303,1713858649388,-500.0,0.00011995,2]
[323267304,1713858649397,-500.0,0.00011995,2]
[323267305,1713858649408,-500.0,0.00011995,2]
[323267306,1713858649417,-500.0,0.00011995,2]
[323267307,1713858649427,-500.0,0.00011995,2]
[323267308,1713858649438,-500.0,0.00011995,2]
[323267309,1713858649448,-500.0,0.00011995,2]
[323267310,1713858649458,-524.35353056,0.00011995,2]
[323267311,1713858649469,-367.0433226,0.00011995,2]
[323267312,1713858649478,-508.57551046,0.00011995,2]
[323267313,1713858649488,-1077.28,0.00011995,2]
[323267314,1713858649498,-500.0,0.00011995,2]
[323267315,1713858649508,-500.0,0.00011995,2]
[323267316,1713858649517,-500.0,0.00011995,2]
[323267317,1713858649527,-500.0,0.00011995,2]
[323267318,1713858649537,-504.17834275,0.00011995,2]
[323267319,1713858649546,-1072.52,0.00011995,2]
[323267320,1713858649555,-522.45051832,0.00011995,2]
[323267321,1713858649565,-500.0,0.00011995,2]
[323267322,1713858649574,-1272.39,0.00011995,2]
[323267323,1713858649584,-500.0,0.00011995,2]
[323267324,1713858649593,-500.0,0.00011995,2]
[323267325,1713858649602,-500.0,0.00011995,2]
[323267326,1713858649612,-1282.77,0.00011995,2]
[323267327,1713858649621,-1403.91,0.00011995,2]
[323267328,1713858649631,-506.57342914,0.00011995,2]
[323267329,1713858649641,-500.0,0.00011995,2]
[323267330,1713858649651,-500.0,0.00011995,2]
[323267331,1713858649661,-500.0,0.00011995,2]
[323267332,1713858649671,-500.0,0.00011995,2]
[323267333,1713858649684,-500.0,0.00011995,2]
[323267334,1713858649693,-1123.69,0.00011995,2]
[323267335,1713858649703,-960.49,0.00011995,2]
[323267336,1713858649712,-500.0,0.00011995,2]
[323267337,1713858649723,-2568.09,0.00011995,2]
[323267338,1713858649733,-863.55,0.00011995,2]
[323267339,1713858649743,-499.97953853,0.00011995,2]
[323267340,1713858649753,-642.31924095,0.00011995,2]
[323267341,1713858649764,-500.0,0.00011995,2]
[323267342,1713858649774,-500.0,0.00011995,2]
[323267343,1713858649783,-1298.25,0.00011995,2]
[323267344,1713858649793,-551.61,0.00011995,2]
[323267345,1713858649802,-500.0,0.00011995,2]
[323267346,1713858649812,-611.87132588,0.00011995,2]
[323267347,1713858649822,-560.93378696,0.00011995,2]
[323267348,1713858649832,-500.0,0.00011995,2]
[323267349,1713858649841,-1347.52,0.00011995,2]
[323267350,1713858649851,-500.0,0.00011995,2]
[323267351,1713858649860,-346.890571,0.00011995,2]
[323267352,1713858649870,-500.0,0.00011995,2]
[323267353,1713858649879,-230.34432865,0.00011995,2]
[323267354,1713858649888,-177.64718592,0.00011995,2]
[323267355,1713858649898,-1114.6,0.00011995,2]
[323267356,1713858649909,-500.0,0.00011995,2]
[323267357,1713858649919,-232.52079518,0.00011995,2]
[323267358,1713858649928,-984.4,0.00011995,2]
[323267359,1713858649938,-587.72,0.00011995,2]
[323267360,1713858649947,-500.0,0.00011995,2]
[323267361,1713858649958,-1696.96,0.00011995,2]
[323267362,1713858649967,-621.66,0.00011995,2]
[323267363,1713858649977,-500.0,0.00011995,2]
[323267364,1713858649986,-500.0,0.00011995,2]
[323267365,1713858649995,-500.0,0.00011995,2]
[323267366,1713858650005,-500.0,0.00011995,2]
[323267367,1713858650014,-500.0,0.00011995,2]
[323267368,1713858650023,-500.0,0.00011995,2]
[323267369,1713858650033,-2128.98,0.00011995,2]
[323267370,1713858650046,-509.60518883,0.00011995,2]
[323267371,1713858650055,-500.0,0.00011995,2]
[323267372,1713858650065,-309.53738092,0.00011995,2]
[323267373,1713858650075,-500.0,0.00011995,2]
[323267374,1713858650084,-431.34023431,0.00011995,2]
[323267375,1713858650094,-502.14641725,0.00011995,2]
[323267376,1713858650104,-500.0,0.00011995,2]
[323267377,1713858650114,-500.0,0.00011995,2]
[323267378,1713858650123,-454.42209009,0.00011995,2]
[323267379,1713858650133,-834.41,0.00011995,2]
[323267380,1713858650142,-500.0,0.00011995,2]
[323267381,1713858650152,-500.0,0.00011995,2]
[323267382,1713858650162,-500.0,0.00011995,2]
[323267383,1713858650172,-658.23,0.00011995,2]
[323267384,1713858650183,-577.44849648,0.00011995,2]
[323267385,1713858650193,-500.0,0.00011995,2]
[323267386,1713858650203,-1104.43,0.00011995,2]
[323267387,1713858650213,-990.11,0.00011995,2]
[323267388,1713858650223,-757.68,0.00011995,2]
[323267389,1713858650232,-500.0,0.00011995,2]
[323267390,1713858650242,-500.0,0.00011995,2]
[323267391,1713858650251,-500.0,0.00011995,2]
[323267392,1713858650261,-284.18477982,0.00011995,2]
[323267393,1713858650270,-500.0,0.00011995,2]
[323267394,1713858650280,-500.0,0.00011995,2]
[323267395,1713858650289,-1109.59,0.00011995,2]
[323267396,1713858650298,-1345.12,0.00011995,2]
[323267397,1713858650308,-500.0,0.00011995,2]
[323267398,1713858650317,-500.0,0.00011995,2]
[323267399,1713858650326,-500.0,0.00011995,2]
[323267400,1713858650335,-566.83,0.00011995,2]
[323267401,1713858650345,-500.0,0.00011995,2]
[323267402,1713858650354,-577.62,0.00011995,2]
[323267403,1713858650363,-500.0,0.00011995,2]
[323267404,1713858650373,-500.0,0.00011995,2]
[323267405,1713858650383,-500.0,0.00011995,2]
[323267406,1713858650392,-501.06601173,0.00011995,2]
[323267407,1713858650403,-1810.16,0.00011995,2]
[323267408,1713858650412,-500.0,0.00011995,2]
[323267409,1713858650421,-198.29636428,0.00011995,2]
[323267410,1713858650430,-500.0,0.00011995,2]
[323267411,1713858650440,-744.51,0.00011995,2]
[323267412,1713858650450,-500.0,0.00011995,2]
[323267413,1713858650459,-504.38295131,0.00011995,2]
[323267414,1713858650469,-500.0,0.00011995,2]
[323267415,1713858650478,-500.0,0.00011995,2]
[323267416,1713858650488,-666.87,0.00011995,2]
[323267417,1713858650498,-500.0,0.00011995,2]
[323267418,1713858650507,-500.0,0.00011995,2]
[323267419,1713858650517,-500.0,0.00011995,2]
[323267420,1713858650527,-500.0,0.00011995,2]
[323267421,1713858650537,-500.0,0.00011995,2]
[323267422,1713858650546,-500.0,0.00011995,2]
[323267423,1713858650556,-490.58382946,0.00011995,2]
[323267424,1713858650566,-500.0,0.00011995,2]
[323267425,1713858650576,-502.85552285,0.00011995,2]
[323267426,1713858650585,-500.0,0.00011995,2]
[323267427,1713858650594,-345.63280796,0.00011995,2]
[323267428,1713858650603,-500.0,0.00011995,2]
[323267429,1713858650613,-500.0,0.00011995,2]
[323267430,1713858650622,-500.0,0.00011995,2]
[323267431,1713858650632,-500.0,0.00011995,2]
[323267432,1713858650641,-157.87086375,0.00011995,2]
[323267433,1713858650651,-500.0,0.00011995,2]
[323267434,1713858650660,-500.0,0.00011995,2]
[323267435,1713858650670,-500.0,0.00011995,2]
[323267436,1713858650681,-558.26544498,0.00011995,2]
[323267437,1713858650692,-500.0,0.00011995,2]
[323267438,1713858650701,-500.0,0.00011995,2]
[323267439,1713858650711,-500.0,0.00011995,2]
[323267440,1713858650720,-501.65040393,0.00011995,2]
[323267441,1713858650730,-502.44304689,0.00011995,2]
[323267442,1713858650739,-504.4,0.00011995,2]
[323267443,1713858650748,-500.0,0.00011995,2]
[323267444,1713858650759,-500.0,0.00011995,2]
[323267445,1713858650769,-500.0,0.00011995,2]
[323267446,1713858650778,-308.18095975,0.00011995,2]
[323267447,1713858650787,-500.0,0.00011995,2]
[323267448,1713858650797,-500.0,0.00011995,2]
[323267449,1713858650806,-200.0,0.00011995,2]
[323267450,1713858650815,-500.0,0.00011995,2]
[323267451,1713858650825,-307.47733873,0.00011995,2]
[323267452,1713858650835,-500.0,0.00011995,2]
[323267453,1713858650844,-500.0,0.00011995,2]
[323267454,1713858650854,-472.04503295,0.00011995,2]
[323267455,1713858651056,-504.9089077,0.00011995,2]
[323267456,1713858651099,-500.0,0.00011995,2]
[323267457,1713858651109,-500.0,0.00011995,2]
[323267458,1713858651119,-500.0,0.00011995,2]
[323267459,1713858651129,-500.0,0.00011995,2]
[323267460,1713858651138,-594.14,0.00011995,2]
[323267461,1713858651148,-500.0,0.00011995,2]
[323267462,1713858651158,-571.85716188,0.00011995,2]
[323267463,1713858651167,-1192.83,0.00011995,2]
[323267464,1713858651177,-500.0,0.00011995,2]
[323267465,1713858651187,-503.65569498,0.00011995,2]
[323267466,1713858651196,-610.84897656,0.00011995,2]
[323267467,1713858651206,-500.0,0.00011995,2]
[323267468,1713858651216,-381.09178789,0.00011995,2]
[323267469,1713858651226,-500.0,0.00011995,2]
[323267470,1713858651235,-252.59991005,0.00011995,2]
[323267471,1713858651245,-500.0,0.00011995,2]
[323267472,1713858651254,-500.0,0.00011995,2]
[323267473,1713858651264,-500.0,0.00011995,2]
[323267474,1713858651274,-500.0,0.00011995,2]
[323267475,1713858651284,-500.0,0.00011995,2]
[323267476,1713858651293,-599.4,0.00011995,2]
[323267477,1713858651304,-500.0,0.00011995,2]
[323267478,1713858651314,-500.0,0.00011995,2]
[323267479,1713858651323,-500.0,0.00011995,2]
[323267480,1713858651333,-2521.28,0.00011995,2]
[323267481,1713858651342,-514.22887567,0.00011995,2]
[323267482,1713858651353,-500.0,0.00011995,2]
[323267483,1713858651363,-715.12,0.00011995,2]
[323267484,1713858651372,-500.0,0.00011995,2]
[323267485,1713858651382,-648.43,0.00011995,2]
[323267486,1713858651391,-500.0,0.00011995,2]
[323267487,1713858651401,-500.0,0.00011995,2]
[323267488,1713858651411,-544.95,0.00011995,2]
[323267489,1713858651421,-500.0,0.00011995,2]
[323267490,1713858651430,-500.0,0.00011995,2]
[323267491,1713858651440,-500.0,0.00011995,2]
[323267492,1713858651450,-500.0,0.00011995,2]
[323267493,1713858651459,-527.27,0.00011995,2]
[323267494,1713858651469,-500.0,0.00011995,2]
[323267495,1713858651480,-1797.12,0.00011995,2]
[323267496,1713858651489,-617.07912279,0.00011995,2]
[323267497,1713858651499,-488.04174642,0.00011995,2]
[323267498,1713858651508,-500.0,0.00011995,2]
[323267499,1713858651518,-500.0,0.00011995,2]
[323267500,1713858651528,-500.0,0.00011995,2]
[323267501,1713858651538,-383.20615218,0.00011995,2]
[323267502,1713858651547,-500.0,0.00011995,2]
[323267503,1713858651557,-931.74,0.00011995,2]
[323267504,1713858651567,-500.0,0.00011995,2]
[323267505,1713858651576,-500.0,0.00011995,2]
[323267506,1713858651586,-825.15,0.00011995,2]
[323267507,1713858651596,-181.8274801,0.00011995,2]
[323267508,1713858651606,-500.0,0.00011995,2]
[323267509,1713858651615,-607.91277987,0.00011995,2]
[323267510,1713858651625,-500.0,0.00011995,2]
[323267511,1713858651635,-500.0,0.00011995,2]
[323267512,1713858651644,-537.31763598,0.00011995,2]
[323267513,1713858651654,-500.0,0.00011995,2]
[323267514,1713858651664,-874.5,0.00011995,2]
[323267515,1713858651674,-267.45,0.00011995,2]
[323267516,1713858651684,-810.67,0.00011995,2]
[323267517,1713858651694,-500.0,0.00011995,2]
[323267518,1713858651704,-544.47,0.00011995,2]
[323267519,1713858651714,-500.0,0.00011995,2]
[323267520,1713858651726,-500.0,0.00011995,2]
[323267521,1713858651737,-241.11326682,0.00011995,2]
[323267522,1713858651747,-500.0,0.00011995,2]
[323267523,1713858651757,-500.0,0.00011995,2]
[323267524,1713858651770,-614.19385089,0.00011995,2]
[323267525,1713858651782,-500.0,0.00011995,2]
[323267526,1713858651791,-500.0,0.00011995,2]
[323267527,1713858651801,-500.0,0.00011995,2]
[323267528,1713858651810,-500.0,0.00011995,2]
[323267529,1713858651820,-500.0,0.00011995,2]
[323267530,1713858651830,-346.26841891,0.00011996,2]
[323267531,1713858651839,-185.74152655,0.00011996,2]
[323267532,1713858651850,-504.38716199,0.00011996,2]
[323267533,1713858651860,-472.3308992,0.00011996,2]
[323267534,1713858651871,-502.25577045,0.00011996,2]
[323267535,1713858651880,-501.10648383,0.00011996,2]
[323267536,1713858651891,-501.24630836,0.00011996,2]
[323267537,1713858651903,-502.90323317,0.00011996,2]
[323267538,1713858651913,-581.16440637,0.00011996,2]
[323267539,1713858651923,-500.0,0.00011996,2]
[323267540,1713858651933,-500.0,0.00011996,2]
[323267541,1713858651943,-500.93639206,0.00011996,2]
[323267542,1713858651953,-501.13845245,0.00011996,2]
[323267543,1713858651963,-504.39907066,0.00011996,2]
[323267544,1713858651973,-501.43562658,0.00011996,2]
[323267545,1713858651983,-501.26454911,0.00011996,2]
[323267546,1713858651993,-500.0,0.00011996,2]
[323267547,1713858652004,-500.0,0.00011996,2]
[323267548,1713858652013,-501.5742417,0.00011996,2]
[323267549,1713858652024,-497.28569272,0.00011996,2]
[323267550,1713858652034,-500.68121682,0.00011996,2]
[323267551,1713858652044,-500.46966524,0.00011996,2]
[323267552,1713858652054,-502.27552408,0.00011996,2]
[323267553,1713858652064,-383.04567347,0.00011996,2]
[323267554,1713858652073,-500.0,0.00011996,2]
[323267555,1713858652084,-500.0,0.00011996,2]
[323267556,1713858652094,-352.55460564,0.00011996,2]
[323267557,1713858652106,-500.0,0.00011996,2]
[323267558,1713858652116,-500.0,0.00011996,2]
[323267559,1713858652125,-440.83088459,0.00011996,2]
[323267560,1713858652135,-186.12444725,0.00011996,2]
[323267561,1713858652145,-502.15427298,0.00011996,2]
[323267562,1713858652158,-500.76832599,0.00011996,2]
[323267563,1713858652168,-500.0,0.00011996,2]
[323267564,1713858652179,-500.0,0.00011996,2]
[323267565,1713858652189,-500.0,0.00011996,2]
[323267566,1713858652200,-500.0,0.00011996,2]
[323267567,1713858652209,-502.10341364,0.00011996,2]
[323267568,1713858652218,-503.66836272,0.00011996,2]
[323267569,1713858652229,-500.0,0.00011996,2]
[323267570,1713858652238,-614.2751975,0.00011996,2]
[323267571,1713858652247,-500.0,0.00011996,2]
[323267572,1713858652257,-500.0,0.00011996,2]
[323267573,1713858652267,-500.0,0.00011996,2]
[323267574,1713858652276,-500.0,0.00011996,2]
[323267575,1713858652286,-500.0,0.00011996,2]
[323267576,1713858652295,-500.0,0.00011996,2]
[323267577,1713858652306,-500.0,0.00011997,2]
[323267578,1713858652316,-500.0,0.00011997,2]
[323267579,1713858652325,-1019.6,0.00011997,2]
[323267580,1713858652335,-500.0,0.00011997,2]
[323267581,1713858652346,-453.02911825,0.00011997,2]
[323267582,1713858652357,-500.0,0.00011997,2]
[323267583,1713858652367,-500.0,0.00011997,2]
[323267584,1713858652376,-500.0,0.00011997,2]
[323267585,1713858652386,-611.62,0.00011997,2]
[323267586,1713858652397,-500.0,0.00011997,2]
[323267587,1713858652407,-198.41065659,0.00011997,2]
[323267588,1713858652417,-500.0,0.00011997,2]
[323267589,1713858652428,-654.13,0.00011997,2]
[323267590,1713858652438,-1151.93,0.00011997,2]
[323267591,1713858652448,-512.32067756,0.00011997,2]
[323267592,1713858652459,-500.0,0.00011997,2]
[323267593,1713858652468,-500.0,0.00011997,2]
[323267594,1713858652478,-928.84187792,0.00011999,2]
[323267595,1713858652488,-3666.95,0.00012,2]
[323267596,1713858652498,-8000.0,0.00012,2]
[323267597,1713858652509,-7999.99,0.00012,2]
[323267598,1713858652519,-7999.99,0.00012,2]
[323267599,1713858652529,-128696.931554,0.00012,2]
[323267600,1713858652539,-7999.99,0.00012,2]
[323267601,1713858652549,-8000.0,0.00012,2]
[323267602,1713858652559,-250.0,0.00012,2]
[323267603,1713858652569,-250.0,0.00012,2]
[323267604,1713858652579,-187.20494318,0.00012032,2]
[323267605,1713858652589,-2506.21574775,0.00012082,2]
[323267606,1713858652599,-164.02859,0.0001212,2]
[323267607,1713858652609,-4676.0311,0.00012147,2]
[323267608,1713858652620,-164.02859,0.0001215,2]
[323267609,1713858652632,-177.04248623,0.00012167,2]
[323267610,1713858652644,-187.20494318,0.00012169,2]
[323267611,1713858652657,-10000.0,0.0001217,2]
[323267612,1713858652668,-2506.21574775,0.00012173,2]
[323267613,1713858652681,-164.0286,0.0001219,2]
[323267614,1713858652691,-150.0,0.000122,2]
[323267615,1713858652701,-150.0,0.000122,2]
[323267616,1713858652711,-150.0,0.000122,2]
[323267617,1713858652722,-164.0286,0.0001223,2]
[323267618,1713858652732,-164.0286,0.00012247,2]
[323267619,1713858652743,-164.0286,0.00012247,2]
[323267620,1713858652754,-1000.0,0.0001226,2]
[323267621,1713858652765,-500.0,0.0001226,2]
[323267622,1713858652775,-2506.21574775,0.00012264,2]
[323267623,1713858652786,-1265.56,0.00012266,2]
[323267624,1713858652798,-500.0,0.00012266,2]
[323267625,1713858652809,-644.30061042,0.00012266,2]
[323267626,1713858652819,-500.0,0.00012267,2]
[323267627,1713858652832,-616.02,0.00012267,2]
[323267628,1713858652844,-500.0,0.00012267,2]
[323267629,1713858652855,-500.0,0.00012267,2]
[323267630,1713858652866,-635.06,0.00012267,2]
[323267631,1713858652877,-835.72,0.00012267,2]
[323267632,1713858652888,-537.7,0.00012267,2]
[323267633,1713858652898,-500.0,0.00012267,2]
[323267634,1713858652909,-1135.54,0.00012267,2]
[323267635,1713858652920,-500.0,0.00012267,2]
[323267636,1713858652930,-500.0,0.00012267,2]
[323267637,1713858652939,-500.0,0.00012267,2]
[323267638,1713858652949,-500.0,0.00012267,2]
[323267639,1713858652960,-500.0,0.00012267,2]
[323267640,1713858652971,-500.0,0.00012267,2]
[323267641,1713858652980,-500.0,0.00012267,2]
[323267642,1713858652991,-1282.05,0.00012267,2]
[323267643,1713858653001,-500.0,0.00012267,2]
[323267644,1713858653012,-526.54,0.00012267,2]
[323267645,1713858653024,-500.0,0.00012267,2]
[323267646,1713858653034,-500.0,0.00012267,2]
[323267647,1713858653044,-500.0,0.00012267,2]
[323267648,1713858653055,-500.0,0.00012267,2]
[323267649,1713858653065,-500.0,0.00012267,2]
[323267650,1713858653075,-500.0,0.00012267,2]
[323267651,1713858653087,-500.0,0.00012267,2]
[323267652,1713858653098,-500.0,0.00012267,2]
[323267653,1713858653108,-500.0,0.00012267,2]
[323267654,1713858653119,-1356.45,0.00012267,2]
[323267655,1713858653130,-500.0,0.00012267,2]
[323267656,1713858653140,-1399.17,0.00012267,2]
[323267657,1713858653150,-500.0,0.00012267,2]
[323267658,1713858653162,-500.0,0.00012267,2]
[323267659,1713858653173,-3222.58,0.00012267,2]
[323267660,1713858653183,-500.0,0.00012267,2]
[323267661,1713858653195,-500.0,0.00012267,2]
[323267662,1713858653205,-501.47865921,0.00012267,2]
[323267663,1713858653216,-1130.77,0.00012267,2]
[323267664,1713858653227,-500.0,0.00012267,2]
[323267665,1713858653238,-500.0,0.00012267,2]
[323267666,1713858653248,-500.0,0.00012267,2]
[323267667,1713858653261,-500.0,0.00012267,2]
[323267668,1713858653272,-377.38797634,0.00012267,2]
[323267669,1713858653283,-1615.98,0.00012267,2]
[323267670,1713858653293,-500.0,0.00012267,2]
[323267671,1713858653303,-1055.53,0.00012267,2]
[323267672,1713858653315,-500.0,0.00012267,2]